fUST/lending_fUST_20240829
["ID","MTS","AMOUNT","RATE_DAILY","PERIOD"]
[336543936,1724941843214,-447.113141,0.00019178,2]
[336543937,1724941843223,-447.113141,0.00019178,2]
[336543938,1724941843233,-447.113141,0.00019178,2]
[336543939,1724941843242,-447.113141,0.00019178,2]
[336543940,1724941843252,-447.113141,0.00019178,2]
[336543941,1724941843263,-447.113141,0.00019178,2]
[336543942,1724941843273,-447.113141,0.00019178,2]
[336543943,1724941843283,-447.113141,0.00019178,2]
[336543944,1724941843292,-447.113141,0.00019178,2]
[336543945,1724941843302,-447.113141,0.00019178,2]
[336543946,1724941843311,-500.0,0.00019178,2]
[336543947,1724941843321,-3673.13629769,0.00019178,2]
[336543948,1724941843331,-447.113141,0.00019178,2]
[336543949,1724941843341,-447.113141,0.00019178,2]
[336543950,1724941843355,-500.0,0.00019178,2]
[336543951,1724941843367,-447.113142,0.00019178,2]
[336543953,1724941843379,-500.0,0.00019178,2]
[336543954,1724941843390,-500.0,0.00019178,2]
[336543955,1724941843401,-870.9,0.00019178,2]
[336543957,1724941843411,-500.0,0.00019178,2]
[336543959,1724941843421,-500.0,0.00019178,2]
[336543960,1724941843431,-500.0,0.00019178,2]
[336543961,1724941843442,-2077.05,0.00019178,2]
[336543962,1724941843451,-500.0,0.00019178,2]
[336543963,1724941843580,-500.0,0.00019178,2]
[336543964,1724941843592,-500.0,0.00019178,2]
[336543965,1724941843603,-500.0,0.00019178,2]
[336543966,1724941843612,-500.0,0.00019178,2]
[336543967,1724941843622,-500.0,0.00019178,2]
[336543968,1724941843632,-500.0,0.00019178,2]
[336543969,1724941843641,-500.0,0.00019178,2]
[336543970,1724941843651,-500.0,0.00019178,2]
[336543971,1724941843660,-2137.62645,0.00019178,2]
[336543972,1724941843671,-500.0,0.00019178,2]
[336543973,1724941843680,-500.0,0.00019178,2]
[336543974,1724941843691,-500.0,0.00019178,2]
[336543975,1724941843700,-500.0,0.00019178,2]
[336543976,1724941843710,-500.0,0.00019178,2]
[336543977,1724941843719,-500.0,0.00019178,2]
[336543978,1724941843728,-500.67017476,0.00019178,2]
[336543979,1724941843740,-500.0,0.00019178,2]
[336543980,1724941843749,-500.0,0.00019178,2]
[336543981,1724941843759,-500.0,0.00019178,2]
[336543982,1724941843769,-500.0,0.00019178,2]
[336543983,1724941843779,-500.0,0.00019178,2]
[336543984,1724941843788,-500.0,0.00019178,2]
[336543985,1724941843798,-500.0,0.00019178,2]
[336543986,1724941843808,-500.0,0.00019178,2]
[336543987,1724941843818,-500.0,0.00019178,2]
[336543988,1724941843828,-500.0,0.00019178,2]
[336543990,1724941843838,-500.0,0.00019178,2]
[336543991,1724941843848,-500.0,0.00019178,2]
[336543992,1724941843857,-500.0,0.00019178,2]
[336543993,1724941843867,-500.0,0.00019178,2]
[336543994,1724941843877,-500.0,0.00019178,2]
[336543995,1724941843888,-10726.23986135,0.00019178,2]
[336543996,1724941844166,-1300.0,0.00019178,2]
[336544006,1724941846587,-5915.65684705,0.00019178,2]
[336544007,1724941846604,-3006.0632916,0.00019178,2]
[336544008,1724941846615,-500.0,0.00019178,2]
[336544009,1724941846624,-500.0,0.00019178,2]
[336544010,1724941846634,-501.65347456,0.00019178,2]
[336544012,1724941846644,-500.0,0.00019178,2]
[336544014,1724941846654,-525.78289297,0.00019178,2]
[336544016,1724941846665,-500.0,0.00019178,2]
[336544017,1724941846674,-500.0,0.00019178,2]
[336544019,1724941846684,-878.13,0.00019178,2]
[336544020,1724941846693,-500.0,0.00019178,2]
[336544021,1724941846703,-500.0,0.00019178,2]
[336544022,1724941846712,-556.71,0.00019178,2]
[336544023,1724941846722,-500.0,0.00019178,2]
[336544024,1724941846732,-500.0,0.00019178,2]
[336544026,1724941846747,-500.0,0.00019178,2]
[336544028,1724941846756,-500.0,0.00019178,2]
[336544030,1724941846766,-500.0,0.00019178,2]
[336544031,1724941846775,-500.0,0.00019178,2]
[336544032,1724941846786,-151.0,0.00019178,2]
[336544034,1724941846796,-151.0,0.00019178,2]
[336544036,1724941846806,-151.0,0.00019178,2]
[336544038,1724941846816,-151.0,0.00019178,2]
[336544040,1724941846825,-2983.29,0.00019178,2]
[336544041,1724941846834,-227.4194,0.00019178,2]
[336544043,1724941846844,-500.0,0.00019178,2]
[336544045,1724941846854,-506.4,0.00019178,2]
[336544046,1724941846864,-500.0,0.00019178,2]
[336544047,1724941846873,-1119.42,0.00019178,2]
[336544048,1724941846883,-500.0,0.00019178,2]
[336544049,1724941846893,-500.0,0.00019178,2]
[336544050,1724941846903,-500.0,0.00019178,2]
[336544051,1724941846913,-500.0,0.00019178,2]
[336544052,1724941846923,-500.0,0.00019178,2]
[336544053,1724941846932,-500.0,0.00019178,2]
[336544054,1724941846941,-500.0,0.00019178,2]
[336544055,1724941846952,-500.0,0.00019178,2]
[336544056,1724941846962,-500.0,0.00019178,2]
[336544057,1724941846971,-500.0,0.00019178,2]
[336544058,1724941846981,-198.45388188,0.00019178,2]
[336544060,1724941846992,-500.0,0.00019178,2]
[336544061,1724941847001,-500.0,0.00019178,2]
[336544062,1724941847010,-500.0,0.00019178,2]
[336544063,1724941847020,-500.0,0.00019178,2]
[336544064,1724941847030,-191.213598,0.00019178,2]
[336544065,1724941847039,-191.213598,0.00019178,2]
[336544066,1724941847049,-500.0,0.00019178,2]
[336544067,1724941847059,-191.213598,0.00019178,2]
[336544068,1724941847070,-191.213598,0.00019178,2]
[336544069,1724941847080,-191.213598,0.00019178,2]
[336544070,1724941847091,-191.213598,0.00019178,2]
[336544071,1724941847100,-191.213598,0.00019178,2]
[336544072,1724941847110,-191.213598,0.00019178,2]
[336544073,1724941847120,-191.213598,0.00019178,2]
[336544074,1724941847130,-500.0,0.00019178,2]
[336544075,1724941847140,-191.213598,0.00019178,2]
[336544076,1724941847150,-191.213598,0.00019178,2]
[336544077,1724941847161,-500.0,0.00019178,2]
[336544078,1724941847172,-191.213598,0.00019178,2]
[336544079,1724941847183,-191.213598,0.00019178,2]
[336544080,1724941847193,-191.213598,0.00019178,2]
[336544081,1724941847202,-1236.24,0.00019178,2]
[336544082,1724941847213,-191.213598,0.00019178,2]
[336544083,1724941847222,-500.0,0.00019178,2]
[336544084,1724941847231,-191.213598,0.00019178,2]
[336544085,1724941847248,-191.213598,0.00019178,2]
[336544086,1724941847259,-191.213598,0.00019178,2]
[336544087,1724941847268,-500.0,0.00019178,2]
[336544088,1724941847279,-191.213598,0.00019178,2]
[336544089,1724941847289,-191.213601,0.00019178,2]
[336544090,1724941847300,-500.0,0.00019178,2]
[336544091,1724941847309,-2746.79,0.00019178,2]
[336544092,1724941847320,-500.0,0.00019178,2]
[336544093,1724941847331,-162.378984,0.00019178,2]
[336544094,1724941847341,-151.0,0.0001928,2]
[336544095,1724941847351,-6843.3382623,0.00019432,2]
[336544096,1724941847364,-160.0,0.00019437,5]
[336544097,1724941847374,-13686.6765246,0.00019442,2]
[336544098,1724941847384,-151.0,0.00019451,2]
[336544099,1724941847395,-500.0,0.00019451,2]
[336544100,1724941847405,-500.0,0.00019451,2]
[336544101,1724941847416,-500.0,0.00019451,2]
[336544102,1724941847425,-500.0,0.00019451,2]
[336544103,1724941847436,-500.0,0.00019451,2]
[336544104,1724941847446,-258.38303476,0.00019452,5]
[336544105,1724941847455,-151.0,0.00019452,2]
[336544106,1724941847466,-1481.33,0.00019452,2]
[336544107,1724941847476,-500.0,0.00019452,2]
[336544108,1724941847487,-500.0,0.00019452,2]
[336544109,1724941847497,-500.0,0.00019452,2]
[336544110,1724941847506,-151.0,0.00019452,2]
[336544111,1724941847516,-151.0,0.00019452,2]
[336544112,1724941847526,-540.36,0.00019452,2]
[336544113,1724941847536,-500.0,0.00019452,2]
[336544114,1724941847546,-280.88130705,0.00019452,2]
[336544115,1724941847594,-2.53869295,0.00019452,2]
[336544116,1724941847603,-166.42,0.00019452,2]
[336544117,1724941847613,-500.0,0.00019452,2]
[336544118,1724941847623,-500.0,0.00019452,2]
[336544119,1724941847633,-500.0,0.00019452,2]
[336544120,1724941847643,-1365.79,0.00019452,2]
[336544121,1724941847653,-1615.28,0.00019452,2]
[336544122,1724941847663,-1559.97130705,0.00019452,2]
[336544123,1724941847675,-137.07869295,0.00019452,2]
[336544124,1724941847686,-500.0,0.00019452,2]
[336544125,1724941847697,-108.08089475,0.00019452,2]
[336544126,1724941858072,160.46238052,0.00014247,2]
[336544127,1724941858097,8.84731948,0.00014247,2]
[336544181,1724942948160,-300.0,0.00014,2]
[336544182,1724942948185,-258.096766,0.00014247,2]
[336544183,1724942948207,-255.14,0.00015,2]
[336544224,1724943031697,-255.0079943,0.00017423,2]
[336544225,1724943031708,-162.773782,0.0001814,2]
[336544226,1724943031718,-192.18515185,0.00018561,2]
[336544227,1724943031728,-159.514334,0.00018904,2]
[336544228,1724943031738,-2954.51077852,0.00019078,2]
[336544229,1724943031752,-162.773782,0.00019085,2]
[336544230,1724943031762,-1390.94223645,0.00019168,2]
[336544241,1724943037757,162.199281,0.00014247,2]
[336544256,1724943039843,-2030.7268947,0.00019168,2]
[336544257,1724943039853,-300.0,0.00019177,2]
[336544259,1724943039863,-203.0,0.00019177,2]
[336544260,1724943039881,-500.0,0.00019177,2]
[336544261,1724943039893,-394.75083641,0.00019177,2]
[336544262,1724943039903,-211.36918333,0.00019178,2]
[336544263,1724943039914,-500.0,0.00019178,2]
[336544264,1724943039924,-500.0,0.00019178,2]
[336544265,1724943039934,-500.0,0.00019178,2]
[336544266,1724943039943,-500.0,0.00019178,2]
[336544267,1724943039954,-500.0,0.00019178,2]
[336544268,1724943039964,-500.0,0.00019178,2]
[336544269,1724943039974,-500.0,0.00019178,2]
[336544270,1724943039983,-209.81980082,0.00019178,2]
[336544271,1724943039993,-500.0,0.00019178,2]
[336544272,1724943040003,-500.0,0.00019178,2]
[336544273,1724943040013,-500.0,0.00019178,2]
[336544274,1724943040023,-500.0,0.00019178,2]
[336544275,1724943040032,-500.0,0.00019178,2]
[336544276,1724943040041,-14.16308294,0.00019178,2]
[336544277,1724943040054,-485.83691706,0.00019178,2]
[336544278,1724943040064,-500.0,0.00019178,2]
[336544279,1724943040073,-500.0,0.00019178,2]
[336544280,1724943040082,-500.0,0.00019178,2]
[336544281,1724943040091,-500.0,0.00019178,2]
[336544282,1724943040101,-500.0,0.00019178,2]
[336544283,1724943040111,-500.0,0.00019178,2]
[336544284,1724943040120,-500.0,0.00019178,2]
[336544285,1724943040130,-500.0,0.00019178,2]
[336544286,1724943040139,-500.0,0.00019178,2]
[336544287,1724943040149,-500.0,0.00019178,2]
[336544288,1724943040158,-500.0,0.00019178,2]
[336544289,1724943040169,-500.0,0.00019178,2]
[336544290,1724943040179,-265.17239238,0.00019178,2]
[336544291,1724943040188,-502.67737613,0.00019178,2]
[336544292,1724943040198,-500.0,0.00019178,2]
[336544293,1724943040208,-500.0,0.00019178,2]
[336544294,1724943040218,-500.0,0.00019178,2]
[336544295,1724943040227,-500.0,0.00019178,2]
[336544296,1724943040237,-646.29464615,0.00019178,2]
[336544297,1724943040246,-501.4461414,0.00019178,2]
[336544298,1724943040255,-308.40550688,0.00019178,2]
[336544316,1724943042859,-191.59449312,0.00019178,2]
[336544317,1724943042869,-1876.29,0.00019178,2]
[336544318,1724943042879,-500.0,0.00019178,2]
[336544319,1724943042889,-500.0,0.00019178,2]
[336544320,1724943042898,-500.0,0.00019178,2]
[336544321,1724943042908,-245.5874674,0.00019178,2]
[336544322,1724943042920,-500.0,0.00019178,2]
[336544323,1724943042931,-500.0,0.00019178,2]
[336544324,1724943042941,-500.0,0.00019178,2]
[336544325,1724943042951,-500.0,0.00019178,2]
[336544326,1724943042961,-241.06780043,0.00019178,2]
[336544360,1724943045790,-304.49108138,0.00019178,2]
[336544406,1724943724274,10000.0,0.00023,60]
[336544482,1724944043288,-165.919349,0.00014247,2]
[336544483,1724944043312,-67.30773181,0.00015,2]
[336544485,1724944054638,-92.74226819,0.00015,2]
[336544486,1724944054661,-202.4728096,0.00017883,2]
[336544500,1724944159121,-162.199281,0.00014247,2]
[336544518,1724944231961,-300.0,0.00018087,2]
[336544519,1724944231972,-18322.39311257,0.00018088,2]
[336544525,1724944238194,-2849.36144873,0.00018088,2]
[336544526,1724944238206,-159.514334,0.00018904,2]
[336544527,1724944238216,-2585.19693124,0.00019078,2]
[336544528,1724944238225,-207.8243323,0.000191,2]
[336544529,1724944238236,-207.8243323,0.000191,2]
[336544530,1724944238246,-207.6562893,0.000191,2]
[336544531,1724944238255,-1789.85708466,0.00019168,2]
[336544532,1724944238343,-473.21000055,0.00019168,2]
[336544577,1724944240034,-1097.73898013,0.00019168,2]
[336544578,1724944240044,-265.66598572,0.00019178,2]
[336544579,1724944240054,-582.18654486,0.00019178,2]
[336544580,1724944240064,-1357.89,0.00019178,2]
[336544581,1724944240074,-509.19405069,0.00019178,2]
[336544582,1724944240095,-368.93635069,0.00019178,2]
[336544583,1724944240105,-500.0,0.00019178,2]
[336544584,1724944240116,-500.0,0.00019178,2]
[336544585,1724944240128,-500.0,0.00019178,2]
[336544586,1724944240139,-576.68,0.00019178,2]
[336544587,1724944240149,-500.0,0.00019178,2]
[336544588,1724944240159,-500.0,0.00019178,2]
[336544589,1724944240169,-392.94782591,0.00019178,2]
[336544590,1724944240183,-107.05217409,0.00019178,2]
[336544591,1724944240193,-495.57088238,0.00019178,2]
[336544592,1724944240204,-500.0,0.00019178,2]
[336544593,1724944240214,-500.0,0.00019178,2]
[336544594,1724944240224,-128.57475805,0.00019178,2]
[336544595,1724944240263,-371.42524195,0.00019178,2]
[336544596,1724944240273,-130.12475805,0.00019178,2]
[336544608,1724944243054,-369.87524195,0.00019178,2]
[336544609,1724944243065,-500.0,0.00019178,2]
[336544610,1724944243075,-500.0,0.00019178,2]
[336544611,1724944243086,-500.0,0.00019178,2]
[336544612,1724944243096,-500.0,0.00019178,2]
[336544613,1724944243106,-500.0,0.00019178,2]
[336544614,1724944243116,-199.27393975,0.00019178,2]
[336544643,1724944342650,100000.92223185,0.00025,120]
[336544678,1724945251127,-165.919349,0.00014247,2]
[336544679,1724945251156,-95.0484531,0.00014247,2]
[336544697,1724945339940,-1152.22686767,0.00015,7]
[336544699,1724945361106,-1428.97084528,0.00014147,2]
[336544700,1724945361131,-67.1508279,0.00014247,2]
[336544703,1724945398542,155.0,0.000165,2]
[336544704,1724945403264,91.98219797,0.000165,2]
[336544705,1724945403287,63.01780203,0.000165,2]
[336544706,1724945408183,155.0,0.000165,2]
[336544707,1724945412841,232.71454078,0.000175,2]
[336544761,1724945438268,-167.6673361,0.00018127,2]
[336544763,1724945438281,-2125.715109,0.00018157,2]
[336544765,1724945438290,-164.589268,0.00018904,2]
[336544767,1724945438301,-1628.67,0.0001899,3]
[336544769,1724945438311,-814.33,0.0001899,3]
[336544771,1724945438322,-407.17,0.0001899,3]
[336544772,1724945438332,-203.58,0.0001899,3]
[336544773,1724945438341,-610.78,0.0001899,3]
[336544774,1724945438352,-300.0,0.00018999,2]
[336544776,1724945438362,-300.0,0.00018999,2]
[336544778,1724945438372,-626.32558549,0.00018999,2]
[336544779,1724945438382,-144022.3822827,0.00019,2]
[336544780,1724945438502,-7408.44156873,0.00019,2]
[336544781,1724945438513,-424.87,0.00019168,3]
[336544782,1724945438527,-3192.76576208,0.00019168,2]
[336544783,1724945438537,-812.05633,0.00019176,2]
[336544784,1724945438547,-500.0,0.00019178,2]
[336544785,1724945438558,-500.0,0.00019178,2]
[336544786,1724945438568,-500.0,0.00019178,2]
[336544787,1724945438578,-1301.31,0.00019178,2]
[336544788,1724945438587,-390.97394709,0.00019178,2]
[336544789,1724945438597,-502.07338898,0.00019178,2]
[336544790,1724945438607,-570.40911023,0.00019178,2]
[336544791,1724945438616,-500.0,0.00019178,2]
[336544792,1724945438625,-500.0,0.00019178,2]
[336544793,1724945438634,-500.0,0.00019178,2]
[336544794,1724945438643,-500.0,0.00019178,2]
[336544795,1724945438653,-151.0,0.00019178,2]
[336544796,1724945438662,-500.0,0.00019178,2]
[336544797,1724945438672,-500.0,0.00019178,2]
[336544798,1724945438682,-247.835126,0.00019178,2]
[336544799,1724945438691,-513.47,0.00019178,2]
[336544800,1724945438701,-500.0,0.00019178,2]
[336544801,1724945438710,-500.0,0.00019178,2]
[336544802,1724945438720,-507.25524023,0.00019178,2]
[336544803,1724945438729,-500.0,0.00019178,2]
[336544804,1724945438739,-500.0,0.00019178,2]
[336544805,1724945438748,-500.0,0.00019178,2]
[336544806,1724945438760,-301.79866319,0.00019178,2]
[336544807,1724945438772,-500.0,0.00019178,2]
[336544808,1724945438784,-501.60195043,0.00019178,2]
[336544809,1724945438794,-500.0,0.00019178,2]
[336544810,1724945438804,-500.0,0.00019178,2]
[336544811,1724945438815,-500.0,0.00019178,2]
[336544812,1724945438825,-500.0,0.00019178,2]
[336544813,1724945438835,-528.39,0.00019178,2]
[336544814,1724945438845,-151.0,0.00019178,2]
[336544815,1724945438854,-500.0,0.00019178,2]
[336544816,1724945438864,-209.81980082,0.00019178,2]
[336544817,1724945438874,-497.08654559,0.00019178,2]
[336544818,1724945438885,-500.0,0.00019178,2]
[336544819,1724945438896,-500.0,0.00019178,2]
[336544820,1724945438906,-501.60278994,0.00019178,2]
[336544821,1724945438918,-500.0,0.00019178,2]
[336544822,1724945438927,-500.0,0.00019178,2]
[336544823,1724945438937,-500.0,0.00019178,2]
[336544824,1724945438946,-500.0,0.00019178,2]
[336544825,1724945438957,-500.0,0.00019178,2]
[336544826,1724945438966,-533.51,0.00019178,2]
[336544827,1724945438975,-1798.12,0.00019178,2]
[336544828,1724945438985,-500.0,0.00019178,2]
[336544829,1724945438996,-500.0,0.00019178,2]
[336544830,1724945439005,-500.0,0.00019178,2]
[336544831,1724945439014,-1314.39,0.00019178,2]
[336544832,1724945439025,-500.0,0.00019178,2]
[336544833,1724945439035,-500.0,0.00019178,2]
[336544834,1724945439044,-500.0,0.00019178,2]
[336544835,1724945439053,-1538.71,0.00019178,2]
[336544836,1724945439062,-500.0,0.00019178,2]
[336544837,1724945439071,-500.0,0.00019178,2]
[336544838,1724945439081,-151.0,0.00019178,2]
[336544839,1724945439090,-500.0,0.00019178,2]
[336544840,1724945439099,-1209.57,0.00019178,2]
[336544841,1724945439108,-500.0,0.00019178,2]
[336544842,1724945439118,-1651.69,0.00019178,2]
[336544843,1724945439127,-1571.11512708,0.00019178,2]
[336544844,1724945439139,-1551.34487292,0.00019178,2]
[336544845,1724945439148,-500.0,0.00019178,2]
[336544846,1724945439157,-500.0,0.00019178,2]
[336544847,1724945439168,-1100.36,0.00019178,2]
[336544848,1724945439177,-385.16712895,0.00019178,2]
[336544849,1724945439187,-500.0,0.00019178,2]
[336544850,1724945439196,-5194.59,0.00019178,2]
[336544851,1724945439205,-500.0,0.00019178,2]
[336544852,1724945439215,-2042.71927248,0.00019178,2]
[336544853,1724945439236,-7020.97072752,0.00019178,2]
[336544854,1724945439245,-500.0,0.00019178,2]
[336544855,1724945439254,-500.0,0.00019178,2]
[336544856,1724945439264,-500.0,0.00019178,2]
[336544857,1724945439275,-500.0,0.00019178,2]
[336544858,1724945439284,-500.0,0.00019178,2]
[336544859,1724945439294,-500.0,0.00019178,2]
[336544860,1724945439303,-151.0,0.00019178,2]
[336544861,1724945439313,-500.0,0.00019178,2]
[336544862,1724945439322,-500.0,0.00019178,2]
[336544863,1724945439331,-167.17352833,0.00019178,2]
[336544864,1724945439345,-332.82647167,0.00019178,2]
[336544865,1724945439354,-500.0,0.00019178,2]
[336544866,1724945439365,-1223.43,0.00019178,2]
[336544867,1724945439376,-1220.04,0.00019178,2]
[336544868,1724945439385,-500.0,0.00019178,2]
[336544869,1724945439396,-500.0,0.00019178,2]
[336544870,1724945439407,-500.0,0.00019178,2]
[336544871,1724945439417,-500.0,0.00019178,2]
[336544872,1724945439426,-500.0,0.00019178,2]
[336544873,1724945439436,-2026.3,0.00019178,2]
[336544874,1724945439446,-500.0,0.00019178,2]
[336544875,1724945439455,-500.0,0.00019178,2]
[336544876,1724945439465,-500.0,0.00019178,2]
[336544877,1724945439475,-1545.36,0.00019178,2]
[336544878,1724945439485,-1327.59,0.00019178,2]
[336544879,1724945439494,-500.0,0.00019178,2]
[336544880,1724945439503,-500.0,0.00019178,2]
[336544881,1724945439514,-500.0,0.00019178,2]
[336544882,1724945439529,-500.0,0.00019178,2]
[336544883,1724945439539,-500.0,0.00019178,2]
[336544884,1724945439548,-500.0,0.00019178,2]
[336544885,1724945439558,-500.0,0.00019178,2]
[336544886,1724945439567,-500.0,0.00019178,2]
[336544887,1724945439578,-500.0,0.00019178,2]
[336544888,1724945439588,-500.0,0.00019178,2]
[336544889,1724945439599,-834.61,0.00019178,2]
[336544890,1724945439608,-500.0,0.00019178,2]
[336544891,1724945439617,-500.0,0.00019178,2]
[336544892,1724945439626,-500.0,0.00019178,2]
[336544893,1724945439635,-744.42,0.00019178,2]
[336544895,1724945439645,-500.0,0.00019178,2]
[336544896,1724945439655,-500.0,0.00019178,2]
[336544898,1724945439664,-508.72953757,0.00019178,2]
[336544899,1724945439674,-500.0,0.00019178,2]
[336544900,1724945439684,-500.0,0.00019178,2]
[336544901,1724945439695,-500.0,0.00019178,2]
[336544902,1724945439705,-330.90053697,0.00019178,2]
[336544903,1724945439717,-500.0,0.00019178,2]
[336544904,1724945439727,-500.0,0.00019178,2]
[336544905,1724945439737,-500.0,0.00019178,2]
[336544906,1724945439747,-500.0,0.00019178,2]
[336544907,1724945439758,-2879.82,0.00019178,2]
[336544908,1724945439767,-500.0,0.00019178,2]
[336544909,1724945439783,-890.7,0.00019178,2]
[336544910,1724945439792,-500.0,0.00019178,2]
[336544911,1724945439802,-500.0,0.00019178,2]
[336544912,1724945439812,-500.0,0.00019178,2]
[336544913,1724945439823,-500.0,0.00019178,2]
[336544914,1724945439832,-500.0,0.00019178,2]
[336544915,1724945439843,-20075.12,0.00019178,2]
[336544916,1724945439854,-500.0,0.00019178,2]
[336544917,1724945439866,-500.0,0.00019178,2]
[336544918,1724945439877,-500.0,0.00019178,2]
[336544919,1724945439887,-500.0,0.00019178,2]
[336544920,1724945439896,-500.0,0.00019178,2]
[336544921,1724945439906,-500.0,0.00019178,2]
[336544922,1724945439915,-500.0,0.00019178,2]
[336544923,1724945439924,-445.32612247,0.00019178,2]
[336544924,1724945439933,-500.0,0.00019178,2]
[336544925,1724945439943,-500.0,0.00019178,2]
[336544926,1724945439952,-1052.47,0.00019178,2]
[336544927,1724945439961,-500.0,0.00019178,2]
[336544928,1724945439970,-2683.23,0.00019178,2]
[336544929,1724945439980,-151.0,0.00019178,2]
[336544930,1724945439989,-151.0,0.00019178,2]
[336544931,1724945439998,-500.0,0.00019178,2]
[336544932,1724945440007,-500.0,0.00019178,2]
[336544933,1724945440017,-162.378984,0.00019178,2]
[336544934,1724945440027,-409.4593805,0.000192,2]
[336544935,1724945440036,-207.8243323,0.000192,2]
[336544936,1724945440045,-151.0,0.00019442,2]
[336544937,1724945440055,-6385.53152416,0.00019442,2]
[336544938,1724945440064,-1157.12543907,0.00019451,2]
[336544939,1724945440073,-500.0,0.00019451,2]
[336544940,1724945440083,-500.0,0.00019451,2]
[336544941,1724945440092,-1301.31,0.00019452,2]
[336544942,1724945440101,-541.14321834,0.00019452,2]
[336544943,1724945440111,-500.0,0.00019452,2]
[336544944,1724945440120,-500.0,0.00019452,2]
[336544945,1724945440130,-151.0,0.00019452,2]
[336544946,1724945440139,-151.0,0.00019452,2]
[336544947,1724945440149,-187.659478,0.00019452,2]
[336544948,1724945440158,-500.0,0.00019452,2]
[336544949,1724945440168,-500.0,0.00019452,2]
[336544950,1724945440179,-261.917184,0.00019452,2]
[336544951,1724945440191,-500.0,0.00019452,2]
[336544952,1724945440202,-151.0,0.00019452,2]
[336544953,1724945440212,-151.0,0.00019452,2]
[336544954,1724945440221,-151.0,0.00019452,2]
[336544955,1724945440360,-500.0,0.00019452,2]
[336544956,1724945440372,-151.0,0.00019452,2]
[336544957,1724945440383,-151.0,0.00019452,2]
[336544958,1724945440393,-181.174924,0.00019452,2]
[336544959,1724945440403,-500.0,0.00019452,2]
[336544960,1724945440413,-151.0,0.00019452,2]
[336544961,1724945440423,-533.51,0.00019452,2]
[336544962,1724945440435,-1798.12,0.00019452,2]
[336544963,1724945440445,-500.0,0.00019452,2]
[336544964,1724945440455,-500.0,0.00019452,2]
[336544965,1724945440465,-151.0,0.00019452,2]
[336544966,1724945440474,-1314.39,0.00019452,2]
[336544967,1724945440483,-500.0,0.00019452,2]
[336544968,1724945440493,-1538.71,0.00019452,2]
[336544969,1724945440503,-541.58,0.00019452,2]
[336544970,1724945440515,-281.309953,0.00019452,2]
[336544971,1724945440525,-500.0,0.00019452,2]
[336544972,1724945440537,-1209.57,0.00019452,2]
[336544973,1724945440546,-500.0,0.00019452,2]
[336544974,1724945440556,-1651.69,0.00019452,2]
[336544975,1724945440566,-3122.46,0.00019452,2]
[336544976,1724945440575,-500.0,0.00019452,2]
[336544977,1724945440585,-500.0,0.00019452,2]
[336544978,1724945440594,-1100.36,0.00019452,2]
[336544979,1724945440604,-5194.59,0.00019452,2]
[336544980,1724945440614,-500.0,0.00019452,2]
[336544981,1724945440623,-9063.69,0.00019452,2]
[336544982,1724945440633,-500.0,0.00019452,2]
[336544983,1724945440642,-500.0,0.00019452,2]
[336544984,1724945440651,-500.0,0.00019452,2]
[336544985,1724945440661,-500.0,0.00019452,2]